bitfinex/quotes_BTCUSD_20230111
["timestamp","ask_amount","ask_price","bid_price","bid_amount"]
[1673468433539,2.03552004,17549.0,17548.0,3.35923187]
[1673468435313,2.03552004,17549.0,17548.0,3.65923187]
[1673468437400,2.03552004,17549.0,17548.0,3.35923187]
[1673468437655,2.03552004,17549.0,17548.0,3.23564148]
[1673468438440,2.03559246,17549.0,17548.0,2.67079528]
[1673468438697,2.03552004,17549.0,17548.0,2.61414616]
[1673468439495,2.03559246,17549.0,17548.0,2.31414616]
[1673468439991,2.03552004,17549.0,17548.0,2.31414616]
[1673468440967,2.03552004,17549.0,17548.0,2.61414616]
[1673468441701,2.03552004,17549.0,17548.0,2.31414616]
[1673468441702,2.03559246,17549.0,17548.0,2.31414616]
[1673468441959,2.03552004,17549.0,17548.0,2.31414616]
[1673468442459,2.03552004,17549.0,17548.0,2.22544147]
[1673468442708,2.66040431,17549.0,17548.0,2.22544147]
[1673468442953,2.66040431,17549.0,17548.0,2.22265856]
[1673468443204,2.66040431,17549.0,17548.0,2.02297103]
[1673468443947,2.66040431,17549.0,17548.0,2.68006103]
[1673468444441,0.63323749,17552.0,17551.0,2.86474477]
[1673468444442,0.33323749,17552.0,17551.0,2.86474477]
[1673468444688,1.02073669,17552.0,17551.0,2.86474477]
[1673468445174,0.92564749,17552.0,17551.0,2.86474477]
[1673468445447,0.76449991,17552.0,17551.0,2.86474477]
[1673468445698,0.92559991,17552.0,17551.0,2.86474477]
[1673468445951,1.18152615,17552.0,17551.0,2.86474477]
[1673468446207,1.48152615,17552.0,17551.0,2.86474477]
[1673468446466,1.18152615,17552.0,17551.0,2.86474477]
[1673468446720,1.48152615,17552.0,17551.0,2.86474477]
[1673468446975,1.48152615,17552.0,17551.0,2.85248277]
[1673468447235,1.48152615,17552.0,17551.0,2.76824997]
[1673468447486,1.48145373,17552.0,17551.0,2.68568347]
[1673468447737,1.18252615,17552.0,17551.0,2.69468347]
[1673468448240,1.18245373,17552.0,17551.0,2.69468347]
[1673468448543,0.92652749,17552.0,17551.0,2.69468347]
[1673468448742,1.18252615,17552.0,17551.0,2.69468347]
[1673468450253,1.65309554,17552.0,17551.0,1.79717787]
[1673468450545,1.82366908,17552.0,17551.0,1.79717787]
[1673468450804,1.81559554,17552.0,17551.0,1.79717787]
[1673468451048,2.34325901,17552.0,17551.0,1.79717787]
[1673468451334,2.17268554,17552.0,17551.0,1.79717787]
[1673468451844,1.70208366,17552.0,17551.0,1.79717787]
[1673468452623,1.088995,17552.0,17551.0,1.79717787]
[1673468453901,1.70201124,17552.0,17551.0,1.79717787]
[1673468455931,1.87261312,17552.0,17551.0,1.71770088]
[1673468456436,2.17268554,17552.0,17551.0,1.71770088]
[1673468456697,0.46398466,17552.0,17551.0,0.009]
[1673468456962,3.86657218,17552.0,17551.0,0.009]
[1673468457935,4.27620718,17552.0,17551.0,0.009]
[1673468458176,3.46390718,17552.0,17551.0,0.009]
[1673468458415,3.46110718,17552.0,17551.0,0.009]
[1673468458907,3.88771335,17552.0,17551.0,0.009]
[1673468459670,4.86271335,17552.0,17551.0,0.009]
[1673468459918,4.29297835,17552.0,17551.0,0.009]
[1673468461680,4.29297835,17552.0,17551.0,0.007517]
[1673468462403,3.86637218,17552.0,17551.0,0.007517]
[1673468462651,4.29300087,17552.0,17551.0,0.007517]
[1673468463627,3.31760087,17552.0,17551.0,0.007517]
[1673468464876,2.84197165,17552.0,17551.0,0.007517]
[1673468466134,3.26849413,17552.0,17551.0,0.007517]
[1673468467117,2.84197165,17552.0,17551.0,0.007517]
[1673468467363,2.84197165,17552.0,17548.0,1.75643991]
[1673468467628,2.84197165,17552.0,17548.0,1.73810711]
[1673468467629,0.4625,17549.0,17548.0,1.73810711]
[1673468467876,0.219417,17549.0,17548.0,1.73860698]
[1673468468133,0.1625,17549.0,17548.0,1.73810711]
[1673468468393,0.40017789,17549.0,17547.0,0.570026]
[1673468468675,0.056917,17548.0,17547.0,0.00015]
[1673468468930,0.381817,17548.0,17547.0,0.00015]
[1673468469179,0.681817,17548.0,17547.0,0.00015]
[1673468469431,2.39184388,17548.0,17547.0,0.00015]
[1673468469678,2.41009447,17548.0,17547.0,0.14]
[1673468469930,2.75130323,17548.0,17547.0,0.14]
[1673468470205,2.58071346,17548.0,17547.0,0.14]
[1673468470493,2.58071346,17548.0,17545.0,0.00580974]
[1673468470755,2.58071346,17548.0,17547.0,0.02928357]
[1673468470756,3.00743935,17548.0,17547.0,0.02928357]
[1673468471005,3.00743935,17548.0,17547.0,0.00248054]
[1673468471006,2.65594525,17548.0,17547.0,0.00248054]
[1673468471505,0.3,17547.0,17543.0,1.63312572]
[1673468471751,0.1625,17544.0,17543.0,1.61059485]
[1673468471995,0.1625,17544.0,17543.0,0.60359889]
[1673468471996,0.40017789,17544.0,17543.0,0.60359889]
[1673468472245,0.1625,17544.0,17543.0,0.60359889]
[1673468472507,0.16257242,17544.0,17543.0,0.60359889]
[1673468472758,1.602391,17546.0,17543.0,0.60359889]
[1673468473016,0.9372555,17546.0,17543.0,1.17362589]
[1673468473263,0.9372555,17546.0,17543.0,1.17347589]
[1673468473516,0.3376485,17545.0,17543.0,1.17347589]
[1673468474513,0.014,17544.0,17543.0,1.17347589]
[1673468474771,7.242e-05,17544.0,17543.0,0.570027]
[1673468475035,0.3516485,17545.0,17543.0,0.553578]
[1673468475293,0.014,17545.0,17542.0,0.30642209]
[1673468475559,0.014,17545.0,17541.0,0.570074]
[1673468475560,7.242e-05,17544.0,17541.0,0.570074]
[1673468475822,0.056917,17543.0,17541.0,0.570074]
[1673468476060,0.96894731,17544.0,17541.0,0.570074]
[1673468476061,0.3938952,17542.0,17541.0,0.570074]
[1673468476306,0.3938952,17542.0,17540.0,3.47647102]
[1673468476307,0.63157309,17542.0,17540.0,2.3635]
[1673468476563,0.51948942,17541.0,17539.0,1.140425]
[1673468476816,0.51948942,17541.0,17539.0,1.15955564]
[1673468476817,0.40025031,17541.0,17539.0,1.15955564]
[1673468477074,0.40025031,17541.0,17539.0,1.15940564]
[1673468477075,0.16257242,17541.0,17539.0,1.15940564]
[1673468477845,0.17667242,17541.0,17539.0,1.15940564]
[1673468478345,0.014,17541.0,17539.0,1.15940564]
[1673468478648,0.35074531,17541.0,17539.0,1.15940564]
[1673468478934,0.35081773,17541.0,17539.0,1.16038485]
[1673468479172,0.35081773,17541.0,17539.0,1.72956264]
[1673468479712,0.35081773,17541.0,17538.0,0.74701553]
[1673468479713,0.34819486,17540.0,17538.0,0.74701553]
[1673468479970,0.34819486,17540.0,17538.0,1.31718853]
[1673468479971,0.58587275,17540.0,17538.0,1.31718853]
[1673468480269,0.34819486,17540.0,17538.0,1.31718853]
[1673468480485,0.34819486,17540.0,17537.0,1.19719704]
[1673468480749,0.34819486,17540.0,17537.0,1.76739804]
[1673468480750,0.58587275,17540.0,17537.0,1.76739804]
[1673468481022,0.58587275,17540.0,17537.0,1.04933749]
[1673468481306,0.35336191,17539.0,17537.0,1.34933749]
[1673468481587,0.35328949,17539.0,17537.0,1.04933749]
[1673468481807,0.35328949,17539.0,17537.0,1.34933749]
[1673468482318,0.36736191,17539.0,17538.0,0.357047]
[1673468482578,0.36736191,17539.0,17537.0,1.34934149]
[1673468482796,0.36728949,17539.0,17537.0,1.440409]
[1673468483041,0.36728949,17539.0,17538.0,0.357047]
[1673468483292,0.36728949,17539.0,17538.0,0.3]
[1673468483533,0.36728949,17539.0,17537.0,1.440396]
[1673468484016,0.35328949,17539.0,17537.0,1.440396]
[1673468484265,0.36728949,17539.0,17537.0,1.440396]
[1673468484762,0.35328949,17539.0,17537.0,1.440396]
[1673468485261,0.36728949,17539.0,17537.0,1.440396]
[1673468485774,0.36736191,17539.0,17537.0,1.440396]
[1673468486019,0.36736191,17539.0,17537.0,2.010618]
[1673468487034,0.36728949,17539.0,17537.0,2.010618]
[1673468487283,0.36728949,17539.0,17537.0,1.710618]
[1673468487551,0.36728949,17539.0,17536.0,2.72761227]
[1673468487552,0.38079657,17538.0,17536.0,2.72761227]
[1673468487811,0.38079657,17538.0,17537.0,1.140412]
[1673468487812,0.61847446,17538.0,17537.0,1.140412]
[1673468488064,0.61847446,17538.0,17535.0,1.22516229]
[1673468488065,0.43771357,17538.0,17535.0,1.22516229]
[1673468488317,0.61847446,17538.0,17535.0,1.79542429]
[1673468488826,0.63147446,17538.0,17535.0,1.79542429]
[1673468489079,0.5014962,17537.0,17535.0,1.140532]
[1673468489336,0.6628962,17537.0,17535.0,1.140532]
[1673468489588,0.6628962,17537.0,17535.0,0.57027]
[1673468490085,0.6628962,17537.0,17535.0,1.140557]
[1673468490846,0.44046313,17538.0,17536.0,0.56606975]
[1673468491104,0.44053555,17538.0,17536.0,1.70655475]
[1673468491367,0.44053555,17538.0,17536.0,1.70701027]
[1673468491368,0.014,17537.0,17536.0,1.70701027]
[1673468491651,0.42653555,17538.0,17536.0,1.70655475]
[1673468491878,0.014,17538.0,17537.0,0.357047]
[1673468492144,0.014,17538.0,17537.0,2.367713]
[1673468492640,0.40719037,17540.0,17537.0,2.010666]
[1673468492995,0.014,17538.0,17537.0,2.010666]
[1673468493446,0.014,17538.0,17537.0,2.310666]
[1673468493950,0.40734037,17540.0,17537.0,2.367713]
[1673468494199,0.42119037,17540.0,17538.0,0.68642173]
[1673468494443,0.40719037,17540.0,17539.0,0.570157]
[1673468494685,0.40719037,17540.0,17539.0,1.140314]
[1673468494930,0.40726279,17540.0,17539.0,1.140314]
[1673468495439,0.40719037,17540.0,17539.0,1.140314]
[1673468496191,0.42219037,17540.0,17539.0,1.140314]
[1673468497478,0.015,17540.0,17539.0,1.710471]
[1673468497976,0.015,17540.0,17539.0,2.010471]
[1673468498481,0.015,17540.0,17539.0,1.710471]
[1673468498733,0.01507242,17540.0,17539.0,1.710471]
[1673468499509,0.015,17540.0,17539.0,1.710471]
[1673468500042,0.01507242,17540.0,17539.0,1.710471]
[1673468501082,0.01507242,17540.0,17539.0,1.140314]
[1673468501578,0.015,17540.0,17539.0,1.140314]
[1673468502314,0.01507242,17540.0,17539.0,1.140314]
[1673468503086,0.015,17540.0,17539.0,1.140314]
[1673468503641,0.01507242,17540.0,17539.0,1.140314]
[1673468503910,0.015,17540.0,17539.0,1.140314]
[1673468504672,0.01507242,17540.0,17539.0,1.140314]
[1673468505445,0.015,17540.0,17539.0,1.140314]
[1673468507171,0.51424912,17540.0,17539.0,1.140314]
[1673468508920,0.51424912,17540.0,17538.0,1.82676873]
[1673468509175,0.51432154,17540.0,17538.0,1.82676873]
[1673468510194,0.51432154,17540.0,17538.0,1.25658273]
[1673468510686,0.49932154,17540.0,17538.0,1.25658273]
[1673468510947,0.51332154,17540.0,17538.0,1.25658273]
[1673468511682,0.51320721,17540.0,17538.0,1.82677273]
[1673468512175,0.51313479,17540.0,17538.0,1.82677273]
[1673468514027,0.03148387,17539.0,17538.0,1.82677273]
[1673468515308,0.04748387,17539.0,17538.0,1.82677273]
[1673468515531,0.52870771,17539.0,17538.0,1.82677273]
[1673468517117,0.04748387,17539.0,17538.0,1.82677273]
[1673468517837,0.04748387,17539.0,17538.0,3.13710404]
[1673468518102,0.04748387,17539.0,17538.0,3.49415104]
[1673468518394,0.04748387,17539.0,17538.0,4.36434104]
[1673468518606,0.04748387,17539.0,17538.0,3.05400973]
[1673468518895,0.04748387,17539.0,17538.0,4.36434791]
[1673468519643,0.04748387,17539.0,17538.0,4.61937381]
[1673468519885,0.04748387,17539.0,17538.0,4.75255945]
[1673468521623,0.04748387,17539.0,17538.0,4.39551245]
[1673468522124,0.04748387,17539.0,17538.0,4.75255945]
[1673468522403,0.04748387,17539.0,17538.0,4.92258721]
[1673468522665,0.04748387,17539.0,17538.0,5.22258721]
[1673468522911,0.04748387,17539.0,17538.0,4.92258721]
[1673468523461,0.04748387,17539.0,17538.0,5.22258721]
[1673468523672,0.04748387,17539.0,17538.0,4.55268945]
[1673468523926,0.04748387,17539.0,17538.0,4.54768945]
[1673468524186,0.04748387,17539.0,17538.0,5.02177196]
[1673468524444,0.04748387,17539.0,17538.0,5.09275599]
[1673468524944,0.04748387,17539.0,17538.0,4.55756172]
[1673468525196,0.04748387,17539.0,17538.0,4.13079959]
[1673468525689,0.04748387,17539.0,17538.0,5.18107864]
[1673468525940,0.04748387,17539.0,17538.0,4.13079959]
[1673468526211,0.04748387,17539.0,17538.0,5.15094386]
[1673468527281,0.04748387,17539.0,17538.0,5.49226734]
[1673468527756,0.04748387,17539.0,17538.0,5.22152296]
[1673468528782,0.04755629,17539.0,17538.0,4.92152296]
[1673468529038,0.04748387,17539.0,17538.0,4.3938605]
[1673468529294,0.04748387,17539.0,17538.0,2.92140164]
[1673468529553,0.04748387,17539.0,17538.0,2.56435464]
[1673468529796,0.43055343,17539.0,17538.0,1.22155604]
[1673468530054,0.43055343,17539.0,17537.0,0.570191]
[1673468530312,0.42950139,17538.0,17537.0,0.570191]
[1673468530559,0.59100139,17538.0,17537.0,0.570191]
[1673468530813,0.59100139,17538.0,17536.0,1.18901854]
[1673468531075,0.59100139,17538.0,17536.0,1.36020696]
[1673468531326,0.59100139,17538.0,17536.0,1.61620627]
[1673468531837,0.60600139,17538.0,17536.0,1.61572587]
[1673468532847,0.59100139,17538.0,17536.0,2.18646127]
[1673468533094,0.60500139,17538.0,17536.0,2.18646127]
[1673468533859,0.60500139,17538.0,17537.0,0.17070802]
[1673468533860,0.44350139,17538.0,17537.0,0.17070802]
[1673468534101,0.44350139,17538.0,17537.0,0.570222]
[1673468534348,0.44350139,17538.0,17537.0,0.74093002]
[1673468534594,0.44350139,17538.0,17537.0,0.570222]
[1673468534815,0.35998739,17538.0,17536.0,2.48596687]
[1673468535074,0.35998739,17538.0,17536.0,2.22996156]
[1673468535589,0.35998739,17538.0,17536.0,2.48596087]
[1673468535838,0.35998739,17538.0,17536.0,2.48644127]
[1673468536092,0.37505981,17538.0,17536.0,3.05621587]
[1673468536339,0.37505981,17538.0,17536.0,2.80021656]
[1673468536587,0.36005981,17538.0,17536.0,2.80021656]
[1673468536844,0.37405981,17538.0,17536.0,2.22997756]
[1673468537088,0.37405981,17538.0,17536.0,1.75926954]
[1673468537815,0.37398739,17538.0,17536.0,1.93045796]
[1673468538067,0.37405981,17538.0,17536.0,1.93045796]
[1673468538301,0.37405981,17538.0,17536.0,2.49523256]
[1673468538550,0.37405981,17538.0,17536.0,1.92497756]
[1673468538808,0.37405981,17538.0,17536.0,1.75426954]
[1673468539345,0.37405981,17538.0,17536.0,1.92545796]
[1673468539620,0.37398739,17538.0,17536.0,1.92545796]
[1673468539903,0.37405981,17538.0,17536.0,1.92497756]
[1673468540133,0.37405981,17538.0,17536.0,1.75426954]
[1673468541136,0.54625793,17537.0,17535.0,1.14053]
[1673468541383,0.056917,17536.0,17535.0,1.14191602]
[1673468541633,0.78393582,17537.0,17535.0,1.14053]
[1673468541877,0.54625793,17537.0,17535.0,1.14053]
[1673468542129,0.54625793,17537.0,17535.0,1.70194531]
[1673468542620,0.56125793,17537.0,17535.0,1.70194531]
[1673468543109,0.36240728,17536.0,17535.0,1.70194531]
[1673468544348,0.1626,17537.0,17535.0,1.70194531]
[1673468544854,0.015,17536.0,17535.0,1.70194531]
[1673468545126,0.45097408,17538.0,17536.0,0.68190755]
[1673468545369,0.46713842,17539.0,17536.0,0.68190755]
[1673468545622,0.46713842,17539.0,17537.0,0.3]
[1673468545868,0.46721084,17539.0,17537.0,0.3]
[1673468546119,0.46721084,17539.0,17537.0,0.30006928]
[1673468546898,0.46713842,17539.0,17537.0,0.3]
[1673468547132,0.09529144,17539.0,17538.0,0.20810927]
[1673468547383,0.09514144,17539.0,17538.0,1.34848927]
[1673468547640,0.04648387,17539.0,17538.0,1.64848927]
[1673468548127,0.03148387,17539.0,17538.0,2.23598161]
[1673468548379,0.03148387,17539.0,17538.0,2.59302861]
[1673468548623,0.03948387,17539.0,17538.0,3.46321861]
[1673468550366,0.03948387,17539.0,17538.0,3.16314934]
[1673468552362,0.03948387,17539.0,17538.0,3.46314934]
[1673468552619,0.03948387,17539.0,17538.0,3.16314934]
[1673468554350,0.03955629,17539.0,17538.0,2.65510934]
[1673468554605,0.03948387,17539.0,17538.0,2.65510934]
[1673468555878,0.03948387,17539.0,17538.0,2.29806234]
[1673468558136,0.03948387,17539.0,17538.0,2.65510934]
[1673468559451,0.03948387,17539.0,17538.0,2.29806234]
[1673468559676,0.03948387,17539.0,17538.0,2.65510934]
[1673468560192,0.03955629,17539.0,17538.0,2.65510934]
[1673468560453,0.03955629,17539.0,17538.0,2.29806234]
[1673468560706,0.03948387,17539.0,17538.0,2.29806234]
[1673468561258,0.03955629,17539.0,17538.0,2.29806234]
[1673468561467,0.03948387,17539.0,17538.0,2.29806234]
[1673468561715,0.03948387,17539.0,17538.0,2.29306234]
[1673468561965,0.03948387,17539.0,17538.0,2.2942635]
[1673468562496,0.03948387,17539.0,17538.0,2.29306234]
[1673468564249,0.03948387,17539.0,17538.0,2.29312238]
[1673468564934,0.03948387,17539.0,17538.0,2.65016938]
[1673468566421,0.03948387,17539.0,17538.0,2.65010934]
[1673468566644,0.03948387,17539.0,17538.0,2.29306234]
[1673468566921,0.03955629,17539.0,17538.0,2.29306234]
[1673468567175,0.03948387,17539.0,17538.0,2.29306234]
[1673468568642,0.03955629,17539.0,17538.0,2.29306234]
[1673468568969,0.03948387,17539.0,17538.0,2.29306234]
[1673468569983,0.03955629,17539.0,17538.0,2.29306234]
[1673468570221,0.03948387,17539.0,17538.0,2.29312238]
[1673468570503,0.03948387,17539.0,17538.0,2.29306234]
[1673468571493,0.03948387,17539.0,17538.0,2.29312238]
[1673468572503,0.03955629,17539.0,17538.0,2.29306234]
[1673468573794,0.03948387,17539.0,17538.0,2.29306234]
[1673468577215,0.03955629,17539.0,17538.0,2.29306234]
[1673468577467,0.03948387,17539.0,17538.0,2.29306234]
[1673468579536,0.03948387,17539.0,17538.0,2.29317657]
[1673468579782,0.03948387,17539.0,17538.0,2.29306234]
[1673468581060,0.03948387,17539.0,17538.0,2.46388459]
[1673468581574,0.03948387,17539.0,17538.0,4.6542085]
[1673468582120,0.03948387,17539.0,17538.0,4.9542085]
[1673468582611,0.03948387,17539.0,17538.0,5.12482396]
[1673468583560,0.03948387,17539.0,17538.0,4.82482396]
[1673468583820,0.03948387,17539.0,17538.0,4.46777696]
[1673468584325,0.03948387,17539.0,17538.0,4.35416409]
[1673468584572,0.03948387,17539.0,17538.0,4.52505864]
[1673468585308,0.03939786,17539.0,17538.0,4.82505864]
[1673468585529,0.03939786,17539.0,17538.0,4.82522178]
[1673468585770,0.03939786,17539.0,17538.0,5.25196547]
[1673468586046,0.03939786,17539.0,17538.0,5.25196156]
[1673468586535,0.03939786,17539.0,17538.0,4.52505473]
[1673468586536,0.03947028,17539.0,17538.0,4.52505473]
[1673468586783,0.03947028,17539.0,17538.0,3.21436674]
[1673468587031,0.03947028,17539.0,17538.0,3.077384]
[1673468587275,0.03947028,17539.0,17538.0,2.46399269]
[1673468588560,0.03939786,17539.0,17538.0,2.46415583]
[1673468589087,0.03939786,17539.0,17538.0,2.92209656]
[1673468590797,0.03939786,17539.0,17538.0,2.92193342]
[1673468591284,0.03939786,17539.0,17538.0,2.46399269]
[1673468592275,0.03939786,17539.0,17538.0,2.92193402]
[1673468592529,0.03939786,17539.0,17538.0,3.98987732]
[1673468592794,0.03939786,17539.0,17538.0,4.71665691]
[1673468593061,0.03939786,17539.0,17538.0,4.4602767]
[1673468593305,0.03939786,17539.0,17538.0,4.46048398]
[1673468593551,0.03939786,17539.0,17538.0,4.76048398]
[1673468595284,0.03939786,17539.0,17538.0,5.01683757]
[1673468595803,0.03939786,17539.0,17538.0,4.59009388]
[1673468597830,0.03939786,17539.0,17538.0,4.71683757]
[1673468598075,0.03939786,17539.0,17538.0,4.76048398]
[1673468600776,0.03947028,17539.0,17538.0,4.1602767]
[1673468601021,0.03939786,17539.0,17538.0,3.40237636]
[1673468601269,0.03939786,17539.0,17538.0,3.90854057]
[1673468601521,0.03939786,17539.0,17538.0,3.74799974]
[1673468601759,0.03939786,17539.0,17538.0,4.36453702]
[1673468602013,0.03939786,17539.0,17538.0,3.74799974]
[1673468603263,0.03939786,17539.0,17538.0,4.31152415]
[1673468603504,0.03939786,17539.0,17538.0,4.73857695]
[1673468604519,0.03939786,17539.0,17538.0,4.18355254]
[1673468605748,0.03939786,17539.0,17538.0,3.75649974]
[1673468606004,0.03939786,17539.0,17538.0,4.74864128]
[1673468606244,0.03939786,17539.0,17538.0,4.32165736]
[1673468606502,0.03939786,17539.0,17538.0,4.74864104]
[1673468607009,0.03939786,17539.0,17538.0,5.09021418]
[1673468607760,0.03939786,17539.0,17538.0,4.92761418]
[1673468608004,0.03939786,17539.0,17538.0,5.09021418]
[1673468608546,0.03932164,17539.0,17538.0,5.09021418]
[1673468609035,0.03932164,17539.0,17538.0,4.91941425]
[1673468609284,0.03932164,17539.0,17538.0,4.45660697]
[1673468609285,0.27707195,17539.0,17538.0,4.45660697]
[1673468609527,0.03939406,17539.0,17538.0,2.86663889]
[1673468609775,0.03939406,17539.0,17538.0,0.91643264]
[1673468610020,0.03939406,17539.0,17537.0,1.40197756]
[1673468610021,0.47320834,17539.0,17537.0,1.40197756]
[1673468610305,0.71088623,17539.0,17537.0,0.17079975]
[1673468610557,0.056917,17538.0,17536.0,0.63954865]
[1673468610823,0.39714121,17537.0,17536.0,0.1687489]
[1673468611077,0.39714121,17537.0,17535.0,0.65674138]
[1673468611322,0.39714121,17537.0,17535.0,0.35674138]
[1673468611586,0.39714121,17537.0,17535.0,0.97111065]
[1673468612063,0.39714121,17537.0,17535.0,1.2272944]
[1673468612797,0.39714121,17537.0,17535.0,0.35674138]
[1673468613050,0.1626,17536.0,17534.0,0.86927421]
[1673468613535,0.59501494,17536.0,17534.0,0.86927421]
[1673468614275,0.59501494,17536.0,17534.0,1.43958621]
[1673468614519,0.59501494,17536.0,17534.0,1.44059067]
[1673468614772,0.59501494,17536.0,17534.0,1.26878646]
[1673468615267,0.60901494,17536.0,17534.0,1.26878646]
[1673468615512,0.60901494,17536.0,17534.0,1.83910646]
[1673468615777,0.60901494,17536.0,17534.0,1.84011092]
[1673468616032,0.59501494,17536.0,17534.0,2.00990621]
[1673468616286,0.60901494,17536.0,17534.0,1.83910646]
[1673468616539,0.59501494,17536.0,17534.0,1.84011092]
[1673468616819,0.61001494,17536.0,17534.0,1.83910646]
[1673468617583,0.60995494,17536.0,17534.0,1.83910646]
[1673468617823,0.44741494,17536.0,17534.0,1.83910646]
[1673468618069,0.61008736,17536.0,17534.0,1.84011092]
[1673468618319,0.61001494,17536.0,17534.0,1.84011092]
[1673468618853,0.61001494,17536.0,17534.0,1.83910646]
[1673468619186,0.015,17536.0,17535.0,1.07539416]
[1673468619349,0.015,17536.0,17535.0,2.21596816]
[1673468619635,0.015,17536.0,17535.0,3.08625516]
[1673468619866,0.015,17536.0,17535.0,3.2853383]
[1673468620117,0.4812114,17538.0,17535.0,3.2853383]
[1673468620366,0.4812114,17538.0,17535.0,2.9282913]
[1673468620609,0.4812114,17538.0,17536.0,0.3]
[1673468620871,0.4812114,17538.0,17537.0,1.140444]
[1673468621355,0.43360753,17538.0,17537.0,1.140444]
[1673468621604,0.015,17538.0,17537.0,1.140444]
[1673468621853,0.57541375,17539.0,17537.0,1.140444]
[1673468622103,0.008,17538.0,17537.0,1.140444]
[1673468623841,0.008,17538.0,17537.0,1.710666]
[1673468625120,0.00807242,17538.0,17537.0,1.710666]
[1673468627870,0.008,17538.0,17537.0,1.710666]
[1673468628127,0.00807242,17538.0,17537.0,1.710666]
[1673468629899,0.41568076,17538.0,17537.0,1.140444]
[1673468630155,0.74088076,17538.0,17535.0,1.06934514]
[1673468630409,0.74088076,17538.0,17535.0,1.140545]
[1673468630410,0.056917,17537.0,17535.0,1.140545]
[1673468630667,0.39917789,17537.0,17535.0,1.140545]
[1673468630944,0.1615,17537.0,17535.0,1.140545]
[1673468631733,0.40839648,17536.0,17535.0,0.570272]
[1673468633208,0.40839648,17536.0,17534.0,1.29292522]
[1673468633455,0.40839648,17536.0,17534.0,1.29291222]
[1673468633673,0.40839648,17536.0,17534.0,1.86320122]
[1673468634157,7.242e-05,17535.0,17534.0,1.86320122]
[1673468634405,0.1615,17537.0,17534.0,2.16320122]
[1673468634651,0.015,17536.0,17534.0,2.06420568]
[1673468635147,0.015,17536.0,17534.0,2.06320122]
[1673468635392,7.242e-05,17536.0,17535.0,0.3]
[1673468635650,7.242e-05,17536.0,17535.0,1.440574]
[1673468636396,0.63692418,17537.0,17535.0,1.440574]
[1673468636641,0.62192418,17537.0,17535.0,1.440574]
[1673468636901,0.015,17536.0,17535.0,1.440574]
[1673468637157,0.62192418,17537.0,17535.0,1.440574]
[1673468637397,0.63792418,17537.0,17535.0,1.440574]
[1673468637636,7.242e-05,17536.0,17535.0,1.440574]
[1673468637880,0.01607242,17536.0,17535.0,1.440574]
[1673468638194,0.016,17536.0,17535.0,1.140574]
[1673468638707,0.62192418,17537.0,17535.0,1.140574]
[1673468638977,0.63792418,17537.0,17535.0,1.140574]
[1673468639499,0.056917,17536.0,17535.0,1.140574]
[1673468639738,0.63792418,17537.0,17535.0,1.140574]
[1673468639739,0.62192418,17537.0,17535.0,1.140574]
[1673468639984,0.016,17536.0,17535.0,1.140574]
[1673468640966,0.016,17536.0,17535.0,1.1415784]
[1673468641761,0.016,17536.0,17535.0,1.85987876]
[1673468642001,0.016,17536.0,17535.0,2.15987876]
[1673468642761,0.016,17536.0,17535.0,2.15887436]
[1673468643037,0.016,17536.0,17535.0,2.72916136]
[1673468643265,0.016,17536.0,17535.0,3.00154273]
[1673468643521,0.016,17536.0,17535.0,3.25772648]
[1673468643775,0.016,17536.0,17535.0,3.92397637]
[1673468644564,0.016,17536.0,17535.0,3.62527441]
[1673468644814,0.016,17536.0,17535.0,4.32573206]
[1673468645079,0.016,17536.0,17535.0,4.49650545]
[1673468645327,0.016,17536.0,17535.0,3.7960478]
[1673468645591,0.016,17536.0,17535.0,4.42709024]
[1673468645847,0.016,17536.0,17535.0,4.2561075]
[1673468646338,0.016,17536.0,17535.0,3.9561075]
[1673468646585,0.016,17536.0,17535.0,4.25622155]
[1673468646829,0.016,17536.0,17535.0,4.25633065]
[1673468647105,0.01513735,17536.0,17535.0,4.25643419]
[1673468648389,0.01520977,17536.0,17535.0,4.25643419]
[1673468648643,0.01513735,17536.0,17535.0,3.95765483]
[1673468648868,0.01513735,17536.0,17535.0,4.12853403]
[1673468650115,0.01520977,17536.0,17535.0,3.95777509]
[1673468650618,0.01513735,17536.0,17535.0,3.95777509]
[1673468650868,0.01513735,17536.0,17535.0,3.95778081]
[1673468651852,0.07463935,17536.0,17535.0,3.95778081]
[1673468652100,0.07463935,17536.0,17535.0,3.95878521]
[1673468652343,0.07463935,17536.0,17535.0,3.95778081]
[1673468652580,0.07463935,17536.0,17535.0,4.42853403]
[1673468652830,0.07463935,17536.0,17535.0,4.96482962]
[1673468653592,0.07463935,17536.0,17535.0,4.66482962]
[1673468654098,0.07463935,17536.0,17535.0,3.96623403]
[1673468654594,0.07463935,17536.0,17535.0,4.50248936]
[1673468654837,0.07463935,17536.0,17535.0,4.26623403]
[1673468655081,0.07463935,17536.0,17535.0,3.79547606]
[1673468655331,0.07471177,17536.0,17535.0,3.79547606]
[1673468655608,0.07463935,17536.0,17535.0,3.79547606]
[1673468656107,0.07463935,17536.0,17535.0,3.03260059]
[1673468656108,0.07471177,17536.0,17535.0,3.03260059]
[1673468656619,0.07471177,17536.0,17535.0,2.67555359]
[1673468657421,0.07471177,17536.0,17535.0,2.68405359]
[1673468657898,0.07471177,17536.0,17535.0,2.47081359]
[1673468658174,0.50409935,17536.0,17535.0,1.30340898]
[1673468658640,0.07463935,17536.0,17535.0,1.47422415]
[1673468660362,0.07463935,17536.0,17535.0,0.33365015]
[1673468661358,0.07471177,17536.0,17534.0,2.53553626]
[1673468661608,0.07471177,17536.0,17534.0,2.76426812]
[1673468661864,0.07463935,17536.0,17535.0,0.82786217]
[1673468662107,0.07463935,17536.0,17535.0,0.52786217]
[1673468662350,0.07471177,17536.0,17534.0,1.62366312]
[1673468662595,0.05957442,17536.0,17534.0,2.19395612]
[1673468662845,0.07457442,17536.0,17535.0,0.357047]
[1673468663098,0.05957442,17536.0,17535.0,0.357047]
[1673468663360,0.07557442,17536.0,17534.0,2.50808437]
[1673468664088,0.07557442,17536.0,17534.0,2.20808437]
[1673468664832,0.075502,17536.0,17534.0,2.76426812]
[1673468665082,0.059502,17536.0,17535.0,0.52786217]
[1673468665324,0.059502,17536.0,17534.0,3.07837737]
[1673468665325,0.074502,17536.0,17534.0,3.07837737]
[1673468665566,0.074502,17536.0,17534.0,2.20808437]
[1673468666066,7.242e-05,17535.0,17534.0,2.20808437]
[1673468666321,7.242e-05,17535.0,17534.0,2.51658437]
[1673468666556,0.59535297,17536.0,17534.0,2.51658437]
[1673468666797,0.59535297,17536.0,17535.0,0.3]
[1673468667097,0.58042539,17536.0,17535.0,0.570287]
[1673468668674,0.59642539,17536.0,17535.0,0.570287]
[1673468669946,0.59635297,17536.0,17535.0,0.570287]
[1673468670431,0.59635297,17536.0,17535.0,1.140574]
[1673468672916,0.075502,17536.0,17535.0,1.140574]